fUSD/lending_fUSD_20251211
["ID","MTS","AMOUNT","RATE_DAILY","PERIOD"]
[398167696,1765413080592,-500.0,0.00041718,60]
[398167697,1765413080603,-500.0,0.00041718,60]
[398167698,1765413080613,-500.0,0.00041718,60]
[398167699,1765413080622,-500.0,0.00041718,60]
[398167700,1765413080631,-500.0,0.00041718,60]
[398167701,1765413080645,-500.0,0.00041718,60]
[398167702,1765413080655,-500.0,0.00041718,60]
[398167703,1765413080664,-500.0,0.00041718,60]
[398167704,1765413080674,-500.0,0.00041718,60]
[398167705,1765413080684,-500.0,0.00041718,60]
[398167706,1765413080693,-182.14,0.00041718,60]
[398167707,1765413080703,-500.0,0.00041718,60]
[398167708,1765413080712,-500.0,0.00041718,60]
[398167709,1765413080722,-500.0,0.00041718,60]
[398167710,1765413080732,-500.0,0.00041718,60]
[398167711,1765413080740,-500.0,0.00041718,60]
[398167712,1765413080750,-500.0,0.00041718,60]
[398167713,1765413080759,-500.0,0.00041718,60]
[398167714,1765413080768,-500.0,0.00041718,60]
[398167715,1765413080777,-500.0,0.00041718,60]
[398167716,1765413080786,-500.0,0.00041718,60]
[398167717,1765413080796,-500.0,0.00041718,60]
[398167718,1765413080804,-500.0,0.00041718,60]
[398167719,1765413080814,-500.0,0.00041718,60]
[398167720,1765413080822,-163.61724338,0.00041718,60]
[398167721,1765413080832,-500.0,0.00041718,60]
[398167722,1765413080841,-500.0,0.00041718,60]
[398167723,1765413080850,-500.0,0.00041718,60]
[398167724,1765413080860,-500.0,0.00041718,60]
[398167725,1765413080869,-500.0,0.00041718,60]
[398167726,1765413080879,-500.0,0.00041718,60]
[398167727,1765413080892,-500.0,0.00041718,60]
[398167728,1765413080902,-500.0,0.00041718,60]
[398167729,1765413080912,-500.0,0.00041718,60]
[398167730,1765413080923,-500.0,0.00041718,60]
[398167731,1765413080935,-462.33,0.00041718,60]
[398167732,1765413080947,-500.0,0.00041718,60]
[398167733,1765413080956,-500.0,0.00041718,60]
[398167734,1765413080966,-500.0,0.00041718,60]
[398167735,1765413080975,-500.0,0.00041718,60]
[398167736,1765413080984,-608.99894198,0.00041718,60]
[398167737,1765413080994,-1029.13,0.00041718,60]
[398167738,1765413081003,-1029.13,0.00041718,60]
[398167739,1765413081014,-1029.13,0.00041718,60]
[398167740,1765413081023,-1029.13,0.00041718,60]
[398167741,1765413081034,-1029.13,0.00041718,60]
[398167742,1765413081044,-1029.13,0.00041718,60]
[398167743,1765413081053,-1029.13,0.00041718,60]
[398167744,1765413081063,-1029.13,0.00041718,60]
[398167745,1765413081073,-1029.13,0.00041718,60]
[398167746,1765413081082,-1029.13,0.00041718,60]
[398167747,1765413081091,-1029.13,0.00041718,60]
[398167748,1765413081101,-1029.13,0.00041718,60]
[398167749,1765413081110,-1029.13,0.00041718,60]
[398167750,1765413081119,-1029.13,0.00041718,60]
[398167751,1765413081129,-1029.13,0.00041718,60]
[398167752,1765413081139,-1029.31823416,0.00041718,60]
[398167753,1765413081148,-500.0,0.00041718,60]
[398167754,1765413081157,-500.0,0.00041718,60]
[398167755,1765413081166,-500.0,0.00041718,60]
[398167756,1765413081176,-500.0,0.00041718,60]
[398167757,1765413081185,-500.0,0.00041718,60]
[398167758,1765413081194,-500.0,0.00041718,60]
[398167759,1765413081203,-220.50973915,0.00041718,60]
[398167760,1765413081213,-504.69,0.00041718,60]
[398167761,1765413081222,-504.69,0.00041718,60]
[398167762,1765413081231,-504.69,0.00041718,60]
[398167763,1765413081240,-504.69,0.00041718,60]
[398167764,1765413081250,-504.69,0.00041718,60]
[398167765,1765413081259,-504.69,0.00041718,60]
[398167766,1765413081268,-504.69,0.00041718,60]
[398167767,1765413081277,-504.69,0.00041718,60]
[398167768,1765413081287,-504.69,0.00041718,60]
[398167769,1765413081296,-504.69,0.00041718,60]
[398167770,1765413081305,-504.69,0.00041718,60]
[398167771,1765413081316,-504.69,0.00041718,60]
[398167772,1765413081325,-504.69,0.00041718,60]
[398167773,1765413081336,-504.69,0.00041718,60]
[398167774,1765413081345,-504.69,0.00041718,60]
[398167775,1765413081356,-504.80216879,0.00041718,60]
[398167776,1765413081366,-500.0,0.00041718,60]
[398167777,1765413081376,-500.0,0.00041718,60]
[398167778,1765413081386,-389.38,0.00041718,60]
[398167779,1765413081396,-202.806354,0.00041719,120]
[398167780,1765413081406,-151.0,0.00041719,120]
[398167781,1765413081416,-200.87144,0.00041719,120]
[398167782,1765413081425,-151.0,0.00041719,14]
[398167783,1765413081435,-151.0,0.00041719,14]
[398167784,1765413081444,-151.0,0.00041719,14]
[398167785,1765413081453,-151.0,0.00041719,14]
[398167786,1765413081463,-151.0,0.00041719,120]
[398167787,1765413081472,-1000.0,0.00041719,5]
[398167788,1765413081481,-1000.0,0.00041719,5]
[398167789,1765413081490,-1000.0,0.00041719,5]
[398167790,1765413081499,-1000.0,0.00041719,5]
[398167791,1765413081509,-1000.0,0.00041719,5]
[398167792,1765413081519,-1000.0,0.00041719,5]
[398167793,1765413081528,-1000.0,0.00041719,5]
[398167794,1765413081539,-1000.0,0.00041719,5]
[398167795,1765413081549,-1000.0,0.00041719,5]
[398167796,1765413081559,-1000.0,0.00041719,5]
[398167797,1765413081568,-1000.0,0.00041725,5]
[398167798,1765413081578,-1000.0,0.00041725,5]
[398167799,1765413081588,-1000.0,0.00041725,5]
[398167800,1765413081597,-1000.0,0.00041725,5]
[398167801,1765413081607,-1000.0,0.00041725,5]
[398167802,1765413081616,-1000.0,0.00041725,5]
[398167803,1765413081626,-1000.0,0.00041725,5]
[398167804,1765413081637,-1000.0,0.00041725,5]
[398167805,1765413081647,-1000.0,0.00041725,5]
[398167806,1765413081657,-1000.0,0.00041725,5]
[398167807,1765413081666,-1000.0,0.00041725,5]
[398167808,1765413081675,-1000.0,0.00041725,5]
[398167809,1765413081684,-1000.0,0.00041725,5]
[398167810,1765413081694,-1000.0,0.00041725,5]
[398167811,1765413081703,-1000.0,0.00041725,5]
[398167812,1765413081713,-1000.0,0.00041725,5]
[398167813,1765413081722,-1000.0,0.00041725,5]
[398167814,1765413081731,-1000.0,0.00041725,5]
[398167815,1765413081740,-1000.0,0.00041725,5]
[398167816,1765413081750,-1000.0,0.00041725,5]
[398167817,1765413081760,-1000.0,0.00041725,5]
[398167818,1765413081770,-1000.0,0.00041725,5]
[398167819,1765413081779,-153.519,0.00041725,5]
[398167820,1765413081788,-7469621.47557115,0.00041725,7]
[398167821,1765413081996,-459.305,0.00041725,7]
[398167822,1765413082008,-306.916601,0.00041725,7]
[398167823,1765413082232,-1058.32946893,0.00016948,2]
[398167824,1765413082243,-537.47173744,0.00016948,2]
[398167825,1765413082255,-143.68893175,0.00016948,2]
[398167826,1765413082264,-183.04151064,0.00016948,2]
[398167827,1765413082273,-478.3168439,0.00016982,7]
[398167828,1765413082283,-150.0,0.00016982,7]
[398167829,1765413082292,-205.95271371,0.00037389,2]
[398167830,1765413082303,-274.45975306,0.00037389,2]
[398167831,1765413082312,-4763.0,0.00039068,2]
[398167832,1765413082323,-500.0,0.00041095,60]
[398167833,1765413082333,-500.0,0.00041095,60]
[398167834,1765413082343,-500.0,0.00041435,60]
[398167835,1765413082353,-500.0,0.00041435,60]
[398167836,1765413082364,-500.0,0.00041435,60]
[398167837,1765413082373,-500.0,0.00041498,60]
[398167838,1765413082383,-500.0,0.00041536,60]
[398167839,1765413082395,-500.0,0.000416,60]
[398167840,1765413082406,-1297.80227005,0.00041725,7]
[398167841,1765413082418,-598.1336958,0.00041725,7]
[398167842,1765413082430,-5265.3587318,0.00041725,7]
[398167843,1765413082443,-500.0,0.00041725,7]
[398167844,1765413082458,-900.90883966,0.00041725,7]
[398167845,1765413082469,-1505.9945437,0.00041725,7]
[398167846,1765413082485,-500.0,0.00041536,60]
[398167847,1765413082495,-341.2771185,0.00041725,7]
[398167848,1765413082505,-86037.28816507,0.00041725,7]
[398167849,1765413082517,-1608.88047643,0.00041725,7]
[398167850,1765413082529,-3678.94705538,0.00041725,7]
[398167851,1765413082540,-719.38218301,0.00041725,7]
[398167852,1765413082550,-1425.78080434,0.00041725,7]
[398167853,1765413082562,-634.43867938,0.00041725,7]
[398167854,1765413082574,-1349.55947384,0.00041725,7]
[398167855,1765413082600,-500.0,0.00041536,60]
[398167856,1765413082610,-500.0,0.000416,60]
[398167857,1765413082621,-1049.20648709,0.00041725,7]
[398167858,1765413082752,-500.0,0.00041095,60]
[398167859,1765413082761,-33.76,0.00041095,60]
[398167860,1765413082772,-466.24,0.00041095,60]
[398167861,1765413082781,-444.87969778,0.00041095,60]
[398167862,1765413082792,-55.12030222,0.00041095,60]
[398167863,1765413082802,-500.0,0.00041095,60]
[398167864,1765413082812,-500.0,0.00041095,60]
[398167865,1765413082821,-500.0,0.00041095,60]
[398167866,1765413082831,-337.99969778,0.00041095,60]
[398167867,1765413082841,-162.00030222,0.00041095,60]
[398167868,1765413082850,-500.0,0.00041095,60]
[398167869,1765413082859,-500.0,0.00041095,60]
[398167870,1765413082869,-414.27856145,0.00041095,60]
[398167871,1765413082880,-101.29018847,0.00041095,60]
[398167872,1765413082889,-500.0,0.00041095,60]
[398167873,1765413082898,-500.0,0.00041536,60]
[398167874,1765413082908,-500.0,0.00041536,60]
[398167875,1765413082917,-500.0,0.000416,60]
[398167876,1765413082927,-500.0,0.000416,60]
[398167877,1765413082937,-358.02205298,0.000416,60]
[398167878,1765413082950,-500.0,0.000416,60]
[398167879,1765413082959,-500.0,0.000416,60]
[398167880,1765413082968,-329021.58654788,0.00041725,7]
[398167881,1765413082979,-408.51155989,0.00041725,7]
[398167882,1765413082991,-6769.99999229,0.00041725,7]
[398167883,1765413083002,-1881.54106507,0.00041725,7]
[398167884,1765413083014,-2433.92932378,0.00041725,7]
[398167885,1765413083025,-436.09524344,0.00041725,7]
[398167886,1765413083036,-11442.50895047,0.00041725,7]
[398167887,1765413083051,-500.0,0.00041536,60]
[398167888,1765413083061,-3300.0,0.00041725,7]
[398167889,1765413083072,-410.24984676,0.00041725,7]
[398167890,1765413083083,-4899.52900939,0.00041725,7]
[398167891,1765413083094,-940.76339569,0.00041725,7]
[398167892,1765413083105,-45391.10593899,0.00041725,7]
[398167893,1765413083131,-500.0,0.00041095,60]
[398167894,1765413083145,-232.80546516,0.00041095,60]
[398167895,1765413083156,-267.19453484,0.00041095,60]
[398167896,1765413083166,-200.68974789,0.00041095,60]
[398167897,1765413083177,-299.31025211,0.00041095,60]
[398167898,1765413083186,-175.04639389,0.00041725,7]
[398167899,1765413083199,-456.93079883,0.00041725,7]
[398167900,1765413083210,-721.93577115,0.00041725,7]
[398167901,1765413083221,-453.0,0.00041725,7]
[398167902,1765413083552,176.0968547,0.00016999,2]
[398167903,1765413087269,-247.74917894,0.00016999,2]
[398167904,1765413090686,-158.35170685,0.00016999,2]
[398167905,1765413092808,-93.89911421,0.00016999,2]
[398167906,1765413092829,-79.98572686,0.00016999,2]
[398167907,1765413094985,-198.67438707,0.00016999,2]
[398167908,1765413096553,-221.33988607,0.00016999,2]
[398167909,1765413096574,-117.12665711,0.00016999,2]
[398167910,1765413099998,-57.27752518,0.00016999,2]
[398167911,1765413100025,-270.1145141,0.00016999,2]
[398167912,1765413100051,-163.44729477,0.00016999,2]
[398167913,1765413105715,-201.50474477,0.00016999,2]
[398167914,1765413109397,-220.51439262,0.00016999,2]
[398167915,1765413110955,-88.92946321,0.00016999,2]
[398167916,1765413110994,-133.21955487,0.00016999,2]
[398167917,1765413112431,-274.9029303,0.00016999,2]
[398167918,1765413116029,-41.42980187,0.00016999,2]
[398167919,1765413116061,-241.38114695,0.00016999,2]
[398167920,1765413118876,-371.61843486,0.00016999,2]
[398167921,1765413118903,-78.75264357,0.00016999,2]
[398167922,1765413120620,-273.86768427,0.00016999,2]
[398167923,1765413123601,-300.0,0.00016998,2]
[398167924,1765413123627,-0.17623263,0.00016999,2]
[398167925,1765413126301,-248.30108162,0.00016999,2]
[398167926,1765413127930,-11.90193972,0.00016999,2]
[398167927,1765413127957,-334.01215614,0.00016999,2]
[398167928,1765413130973,-278.98742567,0.00016999,2]
[398167929,1765413130999,-16.03908037,0.00016999,2]
[398167930,1765413134607,-276.19176611,0.00016999,2]
[398167931,1765413139462,-167.41834824,0.00016999,2]
[398167932,1765413142712,-325.5893961,0.00016773,2]
[398167933,1765413143240,-174.4106039,0.00016773,2]
[398167934,1765413143272,-153.35038709,0.00016999,2]
[398167935,1765413143301,-612.99958181,0.00016999,2]
[398167936,1765413143330,-612.99958181,0.00016999,2]
[398167937,1765413143361,-612.99958181,0.00016999,2]
[398167938,1765413143392,-612.99958181,0.00016999,2]
[398167939,1765413143423,-612.99958181,0.00016999,2]
[398167940,1765413143453,-612.99958181,0.00016999,2]
[398167941,1765413143483,-612.99958181,0.00016999,2]
[398167942,1765413143514,-612.99958181,0.00016999,2]
[398167943,1765413143544,-612.99958181,0.00016999,2]
[398167944,1765413143573,-612.99958181,0.00016999,2]
[398167945,1765413143606,-612.99958181,0.00016999,2]
[398167946,1765413143636,-612.99958181,0.00016999,2]
[398167947,1765413143665,-612.99958181,0.00016999,2]
[398167948,1765413143692,-229.8678549,0.00016999,2]
[398167949,1765413143719,-152.68720766,0.00016999,2]
[398167950,1765413143748,-500.0,0.00016999,2]
[398167951,1765413143778,-328.93371747,0.00016999,2]
[398167952,1765413143804,-538.66650872,0.00016999,2]
[398167953,1765413147868,-500.0,0.00017973,2]
[398167954,1765413147894,-500.0,0.00017973,2]
[398167955,1765413147919,-500.0,0.00017973,2]
[398167956,1765413147944,-500.0,0.00017973,2]
[398167957,1765413147973,-150.0,0.00017973,2]
[398167958,1765413147998,-160.29567516,0.00017973,2]
[398167959,1765413148022,-500.0,0.00017973,2]
[398167960,1765413148050,-500.0,0.00017973,2]
[398167961,1765413148078,-500.0,0.00017973,2]
[398167962,1765413148101,-176.13606639,0.00017973,2]
[398167963,1765413148124,-500.0,0.00017973,2]
[398167964,1765413148147,-500.0,0.00017973,2]
[398167965,1765413148169,-500.0,0.00017973,2]
[398167966,1765413154773,557.4462414,0.00016999,2]
[398167967,1765413154811,202.0027065,0.00016999,2]
[398167968,1765413156824,43754.11931055,0.00017023,2]
[398167969,1765413159418,-50000.0,0.00017023,2]
[398167970,1765413163470,-50000.0,0.00017023,2]
[398167971,1765413169643,-228.61063273,0.00017023,2]
[398167972,1765413170587,-37882.18549982,0.00017023,2]
[398167973,1765413170614,-1000.0,0.00018521,2]
[398167974,1765413170641,-532.71080123,0.00018521,2]
[398167975,1765413170667,-1003.68446554,0.00018521,2]
[398167976,1765413170692,-1000.82569188,0.00018521,2]
[398167977,1765413170720,-218.32601504,0.00018521,2]
[398167978,1765413170746,-1000.0,0.00018521,2]
[398167979,1765413170770,-1000.0,0.00018521,2]
[398167980,1765413170795,-1001.65216187,0.00018521,2]
[398167981,1765413170822,-501.25180498,0.00018521,2]
[398167982,1765413170846,-1000.0,0.00018521,2]
[398167983,1765413170872,-420.0,0.00018566,2]
[398167984,1765413170897,-347.91032159,0.00018643,2]
[398167985,1765413170921,-501.39331624,0.00019068,2]
[398167986,1765413170946,-1501.49818744,0.00019068,2]
[398167987,1765413170973,-1088.56173437,0.00019068,2]
[398167988,1765413177643,-412.27540667,0.00019068,2]
[398167989,1765413177668,-1000.0,0.00019068,2]
[398167990,1765413177695,-48587.72459333,0.00019768,2]
[398167991,1765413178952,-50000.0,0.00019768,2]
[398167992,1765413179810,-50000.0,0.00019768,2]
[398167993,1765413220409,500.0,0.00016999,2]
[398167994,1765413220676,500.0,0.00016999,2]
[398167995,1765413220916,500.0,0.00016999,2]
[398167996,1765413221178,500.0,0.00016999,2]
[398167997,1765413221429,500.0,0.00016999,2]
[398167998,1765413221675,500.0,0.00016999,2]
[398167999,1765413300475,282.92156466,0.00016999,2]
[398168000,1765413347504,-500.0,0.00017873,2]
[398168001,1765413347530,-500.0,0.00017873,2]
[398168002,1765413347556,-500.0,0.00017873,2]
[398168003,1765413347583,-500.0,0.00017873,2]
[398168004,1765413347614,-500.0,0.00017873,2]
[398168005,1765413347642,-500.0,0.00017873,2]
[398168006,1765413347673,-1200.0,0.00017972,2]
[398168007,1765413347704,-500.0,0.00017973,2]
[398168008,1765413347731,-500.0,0.00017973,2]
[398168009,1765413347760,-500.0,0.00017973,2]
[398168010,1765413347788,-368.84429493,0.00017973,2]
[398168011,1765413347816,-500.0,0.00017973,2]
[398168012,1765413347843,-500.0,0.00017973,2]
[398168013,1765413347874,-500.0,0.00017973,2]
[398168014,1765413347900,-500.0,0.00017973,2]
[398168015,1765413347926,-500.0,0.00017973,2]
[398168016,1765413347956,-500.0,0.00017973,2]
[398168017,1765413347983,-927.9329246,0.00018418,2]
[398168018,1765413348010,-3766.8758369,0.00018418,2]
[398168019,1765413348042,-1000.0,0.00018421,2]
[398168020,1765413348070,-1000.0,0.00018421,2]
[398168021,1765413348097,-1000.0,0.00018421,2]
[398168022,1765413348126,-1000.0,0.00018421,2]
[398168023,1765413348152,-812.11603347,0.00018421,2]
[398168024,1765413348181,-1000.0,0.00018421,2]
[398168025,1765413348208,-1000.0,0.00018521,2]
[398168026,1765413348235,-1000.0,0.00018521,2]
[398168027,1765413348261,-1000.0,0.00018521,2]
[398168028,1765413348288,-1000.0,0.00018521,2]
[398168029,1765413348316,-1000.87430975,0.00018521,2]
[398168030,1765413348344,-1000.0,0.00018521,2]
[398168031,1765413348375,-1097.57214664,0.00018521,2]
[398168032,1765413348400,-508.1122429,0.00018521,2]
[398168033,1765413348425,-163.02870493,0.00018973,2]
[398168034,1765413348452,-500.0,0.00019068,2]
[398168035,1765413348480,-1500.0,0.00019068,2]
[398168036,1765413348505,-1501.426629,0.00019068,2]
[398168037,1765413348531,-1500.84790394,0.00019068,2]
[398168038,1765413348556,-500.0,0.00019068,2]
[398168039,1765413348582,-500.0,0.00019616,2]
[398168040,1765413348611,-16652.36897294,0.00019768,2]
[398168041,1765413370308,-16624.82187683,0.00019768,2]
[398168042,1765413382453,153.03,0.00016999,2]
[398168043,1765413423666,166.97451496,0.00017973,2]
[398168044,1765413426599,500.0,0.00017973,2]
[398168045,1765413426654,501.32328751,0.00018521,2]
[398168046,1765413486325,500.0,0.00016999,2]
[398168047,1765413486566,460.45571642,0.00016999,2]
[398168048,1765413543891,500.0,0.00017973,2]
[398168049,1765413543951,1000.0,0.00018521,2]
[398168050,1765413543997,243.75709407,0.00019068,2]
[398168051,1765413594602,541.96436512,0.00016999,2]
[398168052,1765413630274,13867.3869857,0.00019552,2]
[398168053,1765413664037,500.0,0.00018521,2]
[398168054,1765413664100,500.0,0.00017973,2]
[398168055,1765413775185,500.0,0.00016999,2]
[398168056,1765413845121,1240.5614751,0.00019552,2]
[398168057,1765413933244,12199.72468429,0.00019552,2]
[398168058,1765413993706,-50000.0,0.00019552,2]
[398168059,1765414004913,-28732.73303731,0.00019552,2]
[398168060,1765414023630,173.52564751,0.00017973,2]
[398168063,1765414068203,272.56337263,0.00016999,2]
[398168065,1765414094412,175.63,0.00017883,2]
[398168066,1765414103130,695.9496935,0.00019555,2]
[398168075,1765414161454,155.3,0.00013699,2]
[398168076,1765414224151,500.0,0.00016999,2]
[398168077,1765414224385,198.67438707,0.00016999,2]
[398168078,1765414231522,1808.1004017,0.00019555,2]
[398168087,1765414231950,-335.0,0.00020921,2]
[398168088,1765414231960,-155.3,0.00020951,2]
[398168089,1765414231969,-1200.0,0.00021472,2]
[398168090,1765414231979,-300.0,0.00021472,2]
[398168091,1765414231988,-117.71942602,0.00021473,2]
[398168092,1765414232000,-9601.17057398,0.00021473,2]
[398168093,1765414232009,-695.9496935,0.0002158,2]
[398168094,1765414232019,-166.66,0.00021714,2]
[398168095,1765414232028,-166.66,0.00022171,30]
[398168096,1765414232038,-238.0,0.00022191,2]
[398168097,1765414232047,-1868.35,0.00022252,2]
[398168098,1765414232056,-10151.95973252,0.00022317,2]
[398168099,1765414232067,-531.59026748,0.00022317,2]
[398168100,1765414232077,-336.87434467,0.00022339,2]
[398168101,1765414232092,-468.90565533,0.00022339,2]
[398168102,1765414232102,-999.0,0.00022434,3]
[398168103,1765414232111,-412.86,0.00022465,2]
[398168104,1765414232121,-1353.0,0.00022479,2]
[398168105,1765414232130,-391.0,0.00022479,2]
[398168106,1765414232139,-166.66,0.00022628,30]
[398168107,1765414232149,-500.0,0.00022641,2]
[398168108,1765414232158,-628.0,0.00022755,2]
[398168109,1765414232168,-1240.5614751,0.00022765,2]
[398168110,1765414232179,-2034.1129519,0.00022912,2]
[398168111,1765414232188,-500.0,0.00022942,2]
[398168112,1765414232197,-499.65223418,0.00023056,2]
[398168113,1765414232207,-500.0,0.00023056,2]
[398168114,1765414232217,-500.0,0.00023056,2]
[398168116,1765414232226,-500.0,0.00023056,2]
[398168118,1765414232235,-500.0,0.00023056,2]
[398168119,1765414232244,-500.0,0.00023056,2]
[398168121,1765414232253,-500.0,0.00023056,2]
[398168123,1765414232263,-500.0,0.00023056,2]
[398168124,1765414232272,-500.0,0.00023056,2]
[398168125,1765414232281,-500.0,0.00023056,2]
[398168126,1765414232291,-151.0,0.00023056,2]
[398168127,1765414232302,-500.0,0.00023056,2]
[398168128,1765414232317,-151.0,0.00023056,2]
[398168129,1765414232327,-500.0,0.00023056,2]
[398168130,1765414232336,-151.0,0.00023056,2]
[398168131,1765414232346,-151.0,0.00023056,2]
[398168132,1765414232357,-151.0,0.00023056,2]
[398168133,1765414232367,-151.0,0.00023056,2]
[398168134,1765414232376,-151.0,0.00023056,2]
[398168135,1765414232387,-151.0,0.00023056,2]
[398168136,1765414232396,-151.0,0.00023056,2]
[398168137,1765414232405,-151.0,0.00023056,2]
[398168138,1765414232415,-200.0,0.00023056,2]
[398168139,1765414232424,-151.0,0.00023056,2]
[398168140,1765414232434,-151.0,0.00023056,2]
[398168141,1765414232443,-151.0,0.00023056,2]
[398168142,1765414232452,-151.0,0.00023056,2]
[398168143,1765414232462,-151.0,0.00023056,2]
[398168144,1765414232472,-151.0,0.00023056,2]
[398168145,1765414232482,-151.0,0.00023056,2]
[398168146,1765414232492,-151.0,0.00023056,2]
[398168147,1765414232501,-151.0,0.00023056,2]
[398168148,1765414232510,-151.0,0.00023056,2]
[398168149,1765414232519,-200.0,0.00023056,2]
[398168150,1765414232528,-500.0,0.00023056,2]
[398168151,1765414232538,-500.0,0.00023056,2]
[398168152,1765414232550,-500.0,0.00023056,2]
[398168153,1765414232560,-500.0,0.00023056,2]
[398168154,1765414232572,-500.0,0.00023056,2]
[398168155,1765414232582,-500.0,0.00023056,2]
[398168156,1765414232591,-151.0,0.00023056,2]
[398168157,1765414232602,-500.0,0.00023056,2]
[398168158,1765414232613,-151.0,0.00023056,2]
[398168159,1765414232623,-500.0,0.00023056,2]
[398168160,1765414232633,-151.0,0.00023056,2]
[398168161,1765414232643,-151.0,0.00023056,2]
[398168162,1765414232652,-151.0,0.00023056,2]
[398168163,1765414232663,-151.0,0.00023056,2]
[398168164,1765414232672,-151.0,0.00023056,2]
[398168165,1765414232682,-151.0,0.00023056,2]
[398168166,1765414232900,-151.0,0.00023056,2]
[398168167,1765414232918,-151.0,0.00023056,2]
[398168168,1765414232928,-151.0,0.00023056,2]
[398168169,1765414232937,-200.0,0.00023056,2]
[398168170,1765414232947,-1054.06,0.00023056,2]
[398168171,1765414232956,-26764.3447426,0.00023069,2]
[398168172,1765414232977,-452.98716632,0.00023069,2]
[398168173,1765414232989,-4575.55,0.00023069,2]
[398168174,1765414233004,-1903.706576,0.00023069,2]
[398168175,1765414233018,-1832.978,0.00023069,2]
[398168176,1765414233030,-268.99999996,0.00023069,2]
[398168177,1765414233041,-2369.38235258,0.00023069,2]
[398168178,1765414233056,-999.0,0.00023069,2]
[398168179,1765414233067,-456.5,0.00023069,2]
[398168180,1765414233078,-11749.83539884,0.00023069,2]
[398168190,1765414238076,-356.71,0.00023069,2]
[398168191,1765414238087,-360.47720297,0.00023069,2]
[398168192,1765414238099,-466.77818949,0.00023069,2]
[398168193,1765414238110,-7960.0,0.00023069,2]
[398168194,1765414238130,-741.25880839,0.00023069,2]
[398168195,1765414238142,-1524.0225275,0.00023069,2]
[398168196,1765414238184,-1893.48,0.00023069,2]
[398168197,1765414238195,-311.74846854,0.00023069,2]
[398168198,1765414238239,-1684.65757154,0.00023069,2]
[398168199,1765414238250,-626.02677816,0.00023069,2]
[398168200,1765414238261,-416.79001231,0.00023069,2]
[398168201,1765414238273,-23217.2239264,0.00023069,2]
[398168202,1765414238283,-166.66,0.00023086,30]
[398168203,1765414238292,-223.87,0.00023117,2]
[398168204,1765414238302,-1054.06,0.0002333,2]
[398168205,1765414238315,-1680.0,0.00023456,2]
[398168206,1765414238325,-960.0,0.00023471,2]
[398168207,1765414238335,-320.95,0.000235,2]
[398168209,1765414238344,-166.66,0.00023543,30]
[398168211,1765414238354,-200.0,0.00023604,2]
[398168213,1765414238363,-500.0,0.00023604,2]
[398168215,1765414238372,-200.0,0.00023604,2]
[398168217,1765414238382,-1054.06,0.00023604,2]
[398168219,1765414238394,-695.9496935,0.00023606,2]
[398168221,1765414238403,-1054.06,0.00023878,2]
[398168223,1765414238413,-166.66,0.00024,30]
[398168225,1765414238422,-200.0,0.00024152,2]
[398168227,1765414238431,-500.0,0.00024152,2]
[398168229,1765414238441,-200.0,0.00024152,2]
[398168231,1765414238450,-1054.06,0.00024152,2]
[398168233,1765414238459,-12028.45,0.00024174,2]
[398168235,1765414238469,-9852.59521831,0.00024174,2]
[398168236,1765414238483,-147.39478169,0.00024174,2]
[398168237,1765414238493,-166.66,0.00024208,2]
[398168238,1765414238503,-14220.90778916,0.0002424,2]
[398168239,1765414238516,-2294.89920338,0.0002424,2]
[398168240,1765414238527,-1825.68486761,0.0002424,2]
[398168241,1765414238539,-17604.28231714,0.0002424,2]